fUST/lending_fUST_20250306
["ID","MTS","AMOUNT","RATE_DAILY","PERIOD"]
[355471033,1741193431906,-70.71353192,0.00033609,2]
[355471034,1741193431916,-419.79852799,0.00033917,2]
[355471062,1741193437664,-80.20147201,0.00033917,2]
[355471064,1741193437674,-506.28347086,0.00034271,2]
[355471066,1741193437685,-437.40072007,0.00034271,2]
[355471068,1741193437695,-195.122412,0.00034371,120]
[355471070,1741193437706,-215.663368,0.00035098,2]
[355471072,1741193437716,-500.0,0.0003589,2]
[355471073,1741193437725,-3.94330017,0.000362,98]
[355471075,1741193437741,-180.45698659,0.000362,98]
[355471076,1741193437750,-943.68419089,0.00036379,2]
[355471078,1741193437760,-9943.63208716,0.00037,20]
[355471080,1741193437770,-168.15,0.00037,2]
[355471082,1741193437780,-416.66666667,0.00037389,2]
[355471084,1741193437789,-289.14,0.00037398,2]
[355471086,1741193437799,-1000.0,0.00037499,7]
[355471088,1741193437808,-1000.0,0.00037499,7]
[355471090,1741193437818,-1000.0,0.00037499,7]
[355471092,1741193437827,-1000.0,0.00037499,7]
[355471094,1741193437837,-1000.0,0.00037499,7]
[355471096,1741193437846,-1000.0,0.00037499,7]
[355471098,1741193437856,-150.0,0.00037499,2]
[355471100,1741193437865,-423.7935688,0.00037499,15]
[355471102,1741193437874,-500.0,0.00037499,2]
[355471104,1741193437884,-500.0,0.00037499,2]
[355471106,1741193437893,-500.0,0.00037499,2]
[355471108,1741193437903,-500.0,0.00037499,2]
[355471110,1741193437912,-500.0,0.00037499,2]
[355471112,1741193437921,-500.0,0.00037499,2]
[355471114,1741193437931,-500.0,0.00037499,2]
[355471116,1741193437940,-500.0,0.00037499,2]
[355471118,1741193437950,-500.0,0.00037499,2]
[355471120,1741193437960,-500.0,0.00037499,2]
[355471122,1741193437969,-500.0,0.00037499,2]
[355471124,1741193437979,-500.0,0.00037499,2]
[355471126,1741193437988,-500.0,0.00037499,2]
[355471128,1741193437999,-500.0,0.00037499,2]
[355471130,1741193438010,-500.0,0.00037499,2]
[355471132,1741193438019,-500.0,0.00037499,2]
[355471134,1741193438028,-500.0,0.00037499,2]
[355471136,1741193438039,-500.0,0.00037499,2]
[355471138,1741193438048,-500.0,0.00037499,2]
[355471140,1741193438057,-500.0,0.00037499,2]
[355471142,1741193438067,-500.0,0.00037499,2]
[355471143,1741193438079,-500.0,0.00037499,2]
[355471144,1741193438089,-500.0,0.00037499,2]
[355471145,1741193438098,-500.0,0.00037499,2]
[355471146,1741193438107,-500.0,0.00037499,2]
[355471147,1741193438117,-189.27691691,0.00037499,2]
[355471148,1741193438126,-500.0,0.00037499,2]
[355471149,1741193438135,-500.0,0.00037499,2]
[355471150,1741193438144,-500.0,0.00037499,2]
[355471151,1741193438154,-500.0,0.00037499,2]
[355471152,1741193438164,-500.0,0.00037499,2]
[355471153,1741193438173,-500.0,0.00037499,2]
[355471154,1741193438183,-500.0,0.00037499,2]
[355471155,1741193438192,-500.0,0.00037499,2]
[355471156,1741193438202,-500.0,0.00037499,2]
[355471157,1741193438211,-500.0,0.00037499,2]
[355471158,1741193438222,-500.0,0.00037499,2]
[355471159,1741193438232,-500.0,0.00037499,2]
[355471160,1741193438241,-500.0,0.00037499,2]
[355471161,1741193438250,-500.0,0.00037499,2]
[355471162,1741193438260,-500.0,0.00037499,2]
[355471163,1741193438269,-500.0,0.00037499,2]
[355471164,1741193438279,-500.0,0.00037499,2]
[355471165,1741193438288,-550.0,0.00037499,2]
[355471166,1741193438298,-500.0,0.00037499,2]
[355471167,1741193438308,-256.96972985,0.000375,5]
[355471168,1741193438317,-16595.72082719,0.000375,5]
[355471169,1741193438327,-43949.09520708,0.000375,120]
[355471170,1741193438338,-2487.11,0.00037506,120]
[355471171,1741193438347,-2487.11,0.00037506,120]
[355471172,1741193438357,-2487.11,0.00037506,120]
[355471173,1741193438535,-2487.11,0.00037506,120]
[355471174,1741193438546,-2487.11,0.00037506,120]
[355471175,1741193438556,-2487.11,0.00037506,120]
[355471176,1741193438566,-2487.11,0.00037506,120]
[355471177,1741193438575,-2487.11,0.00037506,120]
[355471178,1741193438584,-2487.11,0.00037506,120]
[355471179,1741193438594,-2487.11,0.00037506,120]
[355471180,1741193438603,-2487.11,0.00037506,120]
[355471181,1741193438614,-2487.11,0.00037506,120]
[355471182,1741193438623,-2487.11,0.00037506,120]
[355471183,1741193438633,-2487.11,0.00037506,120]
[355471184,1741193438642,-2487.11,0.00037506,120]
[355471185,1741193438652,-2487.11,0.00037506,120]
[355471186,1741193438662,-2487.11,0.00037506,120]
[355471187,1741193438673,-2487.11,0.00037506,120]
[355471188,1741193438683,-2487.11,0.00037506,120]
[355471189,1741193438692,-2487.11,0.00037506,120]
[355471190,1741193438702,-2487.11,0.00037506,120]
[355471191,1741193438711,-2487.11,0.00037506,120]
[355471192,1741193438720,-2487.11,0.00037506,120]
[355471193,1741193438730,-2487.21,0.00037506,120]
[355471194,1741193438739,-151.0,0.00037794,2]
[355471195,1741193438749,-800.0,0.00037794,2]
[355471196,1741193438758,-864.0,0.00037794,2]
[355471197,1741193438768,-933.12,0.00037794,2]
[355471198,1741193438777,-1007.7696,0.00037794,2]
[355471199,1741193438786,-1088.391168,0.00037794,2]
[355471200,1741193438796,-1175.46246144,0.00037794,2]
[355471201,1741193438804,-1600.0,0.00037794,2]
[355471202,1741193438814,-320.99522556,0.00037794,2]
[355471203,1741193438823,-163.08829133,0.00037816,15]
[355471204,1741193438834,-602.72863969,0.00037816,15]
[355471205,1741193438843,-500.0,0.00037816,15]
[355471206,1741193438853,-254.62636736,0.00037816,15]
[355471207,1741193438863,-1023.47,0.00037816,120]
[355471208,1741193438872,-222000.0,0.00037817,2]
[355471209,1741193438882,-500.0,0.00037873,5]
[355471210,1741193438891,-500.0,0.00037873,5]
[355471211,1741193438901,-1000.0,0.00037899,7]
[355471212,1741193438910,-1000.0,0.00037899,7]
[355471213,1741193438920,-1000.0,0.00037899,7]
[355471214,1741193438929,-251.51288796,0.00037899,7]
[355471215,1741193438938,-416.66666667,0.00037899,7]
[355471216,1741193438947,-1000.0,0.00038,2]
[355471217,1741193438957,-1000.0,0.00038,5]
[355471218,1741193438966,-151679.143,0.00038,120]
[355471219,1741193438975,-18487.18911023,0.00038,2]
[355471220,1741193438984,-552.5340582,0.00038027,4]
[355471221,1741193438994,-151.0,0.000383,13]
[355471222,1741193439006,-213.18372184,0.00038346,3]
[355471223,1741193439015,-1000.0,0.00038355,120]
[355471224,1741193439025,-500.0,0.00038356,9]
[355471225,1741193439035,-500.0,0.00038356,9]
[355471226,1741193439046,-500.0,0.00038356,9]
[355471227,1741193439056,-500.0,0.00038356,9]
[355471228,1741193439065,-513.44720958,0.00038356,9]
[355471229,1741193439075,-500.0,0.00038356,9]
[355471230,1741193439087,-500.0,0.00038356,9]
[355471231,1741193439098,-500.0,0.00038356,9]
[355471232,1741193439107,-500.0,0.00038356,9]
[355471233,1741193439116,-500.0,0.00038356,9]
[355471234,1741193439126,-500.0,0.00038356,9]
[355471235,1741193439135,-500.0,0.00038356,9]
[355471236,1741193439144,-500.0,0.00038356,9]
[355471237,1741193439153,-500.0,0.00038356,9]
[355471238,1741193439163,-500.0,0.00038356,9]
[355471239,1741193439172,-150.0,0.00038356,2]
[355471240,1741193439182,-500.0,0.00038356,9]
[355471241,1741193439192,-525.97,0.00038356,9]
[355471242,1741193439202,-500.0,0.00038356,9]
[355471243,1741193439211,-500.0,0.00038356,9]
[355471244,1741193439221,-500.0,0.00038356,9]
[355471245,1741193439230,-500.0,0.00038356,9]
[355471246,1741193439239,-470.46,0.00038356,9]
[355471247,1741193439249,-500.0,0.00038356,9]
[355471248,1741193439258,-168.45260612,0.00038356,9]
[355471249,1741193439268,-500.0,0.00038356,9]
[355471250,1741193439278,-588.20835425,0.00038356,9]
[355471251,1741193439288,-500.0,0.00038356,9]
[355471252,1741193439297,-500.0,0.00038356,9]
[355471253,1741193439306,-508.3801604,0.00038356,9]
[355471254,1741193439316,-500.0,0.00038356,9]
[355471255,1741193439325,-500.0,0.00038356,9]
[355471256,1741193439336,-500.0,0.00038356,9]
[355471257,1741193439346,-500.0,0.00038356,9]
[355471258,1741193439355,-500.0,0.00038356,9]
[355471259,1741193439365,-500.01399524,0.00038356,9]
[355471260,1741193439375,-500.0,0.00038356,9]
[355471261,1741193439384,-151.0,0.00038356,14]
[355471262,1741193439393,-10002.0,0.00038356,2]
[355471263,1741193439403,-500.0,0.00038356,9]
[355471264,1741193439412,-500.0,0.00038356,9]
[355471265,1741193439422,-500.0,0.00038356,9]
[355471266,1741193439431,-500.0,0.00038356,9]
[355471268,1741193439441,-798.37,0.00038356,9]
[355471269,1741193439451,-500.25474083,0.00038356,9]
[355471270,1741193439460,-500.0,0.00038356,9]
[355471271,1741193439471,-500.0,0.00038356,9]
[355471272,1741193439480,-680.63,0.00038356,9]
[355471273,1741193439490,-500.0,0.00038356,120]
[355471275,1741193439500,-500.0,0.00038356,9]
[355471276,1741193439509,-500.0,0.00038356,9]
[355471277,1741193439519,-500.0,0.00038356,9]
[355471278,1741193439529,-595.64,0.00038356,9]
[355471279,1741193439538,-500.0,0.00038356,9]
[355471280,1741193439547,-500.0,0.00038356,9]
[355471282,1741193439557,-500.0,0.00038356,9]
[355471283,1741193439566,-500.0,0.00038356,9]
[355471284,1741193439576,-500.0,0.00038356,9]
[355471285,1741193439585,-500.0,0.00038356,9]
[355471287,1741193439595,-500.0,0.00038356,9]
[355471289,1741193439604,-500.0,0.00038356,9]
[355471290,1741193439613,-500.0,0.00038356,9]
[355471291,1741193439623,-500.0,0.00038356,9]
[355471292,1741193439632,-500.0,0.00038356,9]
[355471293,1741193439641,-502.5413463,0.00038356,9]
[355471294,1741193439651,-500.0,0.00038356,9]
[355471295,1741193439660,-500.0,0.00038356,9]
[355471296,1741193439669,-500.0,0.00038356,9]
[355471297,1741193439679,-500.0,0.00038356,9]
[355471298,1741193439688,-500.0,0.00038356,9]
[355471299,1741193439698,-762.21,0.00038356,9]
[355471301,1741193439707,-502.07248207,0.00038356,9]
[355471303,1741193439717,-500.0,0.00038356,9]
[355471305,1741193439726,-500.0,0.00038356,9]
[355471307,1741193439735,-500.0,0.00038356,9]
[355471309,1741193439745,-500.0,0.00038356,9]
[355471311,1741193439754,-173.7983464,0.00038356,9]
[355471313,1741193439763,-500.0,0.00038356,9]
[355471315,1741193439772,-500.0,0.00038356,9]
[355471317,1741193439782,-500.0,0.00038356,9]
[355471319,1741193439791,-500.0,0.00038356,9]
[355471321,1741193439801,-619.95,0.00038356,9]
[355471323,1741193439811,-500.0,0.00038356,9]
[355471325,1741193439820,-500.0,0.00038356,9]
[355471327,1741193439829,-500.0,0.00038356,9]
[355471329,1741193439841,-500.0,0.00038356,9]
[355471331,1741193439851,-500.0,0.00038356,9]
[355471333,1741193439860,-500.0,0.00038356,9]
[355471335,1741193439870,-500.0,0.00038356,9]
[355471337,1741193439879,-500.0,0.00038356,9]
[355471339,1741193439888,-500.0,0.00038356,9]
[355471341,1741193439899,-500.0,0.00038356,9]
[355471343,1741193439908,-500.0,0.00038356,9]
[355471345,1741193439917,-500.0,0.00038356,9]
[355471347,1741193439926,-500.0,0.00038356,9]
[355471349,1741193439935,-500.0,0.00038356,9]
[355471351,1741193439945,-500.0,0.00038356,9]
[355471353,1741193439955,-500.0,0.00038356,9]
[355471355,1741193439964,-500.0,0.00038356,9]
[355471357,1741193439974,-644.5,0.00038356,9]
[355471359,1741193439983,-500.0,0.00038356,9]
[355471361,1741193439992,-500.0,0.00038356,9]
[355471363,1741193440007,-500.0,0.00038356,120]
[355471365,1741193440016,-500.0,0.00038356,9]
[355471367,1741193440026,-500.0,0.00038356,9]
[355471369,1741193440035,-500.0,0.00038356,9]
[355471372,1741193440046,-500.0,0.00038356,9]
[355471374,1741193440056,-500.0,0.00038356,9]
[355471376,1741193440065,-500.0,0.00038356,9]
[355471378,1741193440075,-500.0,0.00038356,9]
[355471380,1741193440085,-500.0,0.00038356,9]
[355471382,1741193440094,-500.0,0.00038356,9]
[355471384,1741193440104,-500.0,0.00038356,9]
[355471385,1741193440114,-556.68,0.00038356,9]
[355471387,1741193440124,-500.0,0.00038356,9]
[355471389,1741193440134,-500.0,0.00038356,9]
[355471392,1741193440143,-500.0,0.00038356,9]
[355471394,1741193440153,-500.0,0.00038356,9]
[355471395,1741193440163,-500.0,0.00038356,9]
[355471398,1741193440173,-500.0,0.00038356,9]
[355471400,1741193440182,-500.0,0.00038356,9]
[355471401,1741193440191,-508.31219331,0.00038356,9]
[355471404,1741193440201,-1078.61,0.00038356,9]
[355471406,1741193440211,-511.37662572,0.00038356,9]
[355471408,1741193440221,-500.0,0.00038356,9]
[355471410,1741193440230,-500.0,0.00038356,9]
[355471412,1741193440239,-500.0,0.00038356,9]
[355471414,1741193440248,-500.0,0.00038356,9]
[355471415,1741193440257,-500.0,0.00038356,9]
[355471417,1741193440267,-922.66,0.00038356,9]
[355471419,1741193440276,-939.34,0.00038356,9]
[355471421,1741193440285,-500.0,0.00038356,9]
[355471423,1741193440294,-500.0,0.00038356,9]
[355471425,1741193440303,-500.0,0.00038356,9]
[355471427,1741193440313,-951.01,0.00038356,9]
[355471429,1741193440322,-500.0,0.00038356,9]
[355471431,1741193440331,-500.0,0.00038356,9]
[355471433,1741193440341,-500.0,0.00038356,9]
[355471435,1741193440351,-532.37,0.00038356,9]
[355471437,1741193440360,-500.0,0.00038356,9]
[355471439,1741193440369,-500.0,0.00038356,9]
[355471441,1741193440378,-500.0,0.00038356,120]
[355471443,1741193440387,-500.0,0.00038356,9]
[355471445,1741193440397,-500.0,0.00038356,9]
[355471447,1741193440406,-500.0,0.00038356,9]
[355471449,1741193440415,-500.0,0.00038356,9]
[355471451,1741193440424,-500.0,0.00038356,9]
[355471453,1741193440433,-472.40789774,0.00038356,9]
[355471455,1741193440443,-500.0,0.00038356,9]
[355471457,1741193440452,-500.0,0.00038356,9]
[355471459,1741193440461,-500.0,0.00038356,9]
[355471461,1741193440471,-500.0,0.00038356,9]
[355471463,1741193440480,-500.0,0.00038356,9]
[355471465,1741193440489,-500.0,0.00038356,9]
[355471467,1741193440499,-606.41,0.00038356,9]
[355471469,1741193440508,-500.0,0.00038356,9]
[355471471,1741193440524,-500.0,0.00038356,9]
[355471473,1741193440533,-564.69,0.00038356,9]
[355471475,1741193440542,-500.0,0.00038356,9]
[355471477,1741193440551,-930.8,0.00038356,9]
[355471479,1741193440561,-500.0,0.00038356,9]
[355471481,1741193440571,-278.17159363,0.00038356,9]
[355471483,1741193440581,-507.38775357,0.00038356,9]
[355471485,1741193440593,-500.0,0.00038356,9]
[355471487,1741193440603,-518.16,0.00038356,9]
[355471489,1741193440612,-500.0,0.00038356,9]
[355471491,1741193440622,-500.0,0.00038356,9]
[355471493,1741193440631,-500.0,0.00038356,9]
[355471495,1741193440641,-500.0,0.00038356,9]
[355471497,1741193440650,-500.0,0.00038356,9]
[355471499,1741193440660,-613.3,0.00038356,9]
[355471501,1741193440669,-500.0,0.00038356,9]
[355471503,1741193440678,-500.0,0.00038356,9]
[355471505,1741193440688,-503.21985122,0.00038356,9]
[355471507,1741193440698,-500.0,0.00038356,9]
[355471509,1741193440707,-500.0,0.00038356,9]
[355471511,1741193440716,-500.0,0.00038356,9]
[355471513,1741193440726,-500.0,0.00038356,9]
[355471515,1741193440735,-500.0,0.00038356,9]
[355471517,1741193440745,-506.01083682,0.00038356,9]
[355471519,1741193440754,-500.0,0.00038356,9]
[355471521,1741193440763,-500.0,0.00038356,9]
[355471523,1741193440773,-500.0,0.00038356,9]
[355471526,1741193440783,-500.0,0.00038356,9]
[355471527,1741193440792,-500.0,0.00038356,9]
[355471529,1741193440802,-500.0,0.00038356,9]
[355471531,1741193440811,-500.0,0.00038356,9]
[355471533,1741193440820,-1100.83,0.00038356,9]
[355471535,1741193440830,-500.0,0.00038356,9]
[355471537,1741193440840,-500.0,0.00038356,9]
[355471539,1741193440850,-500.0,0.00038356,9]
[355471541,1741193440859,-500.0,0.00038356,9]
[355471543,1741193440868,-500.0,0.00038356,9]
[355471546,1741193440879,-500.0,0.00038356,9]
[355471548,1741193440889,-500.0,0.00038356,9]
[355471550,1741193440898,-500.0,0.00038356,9]
[355471552,1741193440907,-500.0,0.00038356,9]
[355471554,1741193440917,-500.0,0.00038356,9]
[355471555,1741193440926,-500.0,0.00038356,9]
[355471557,1741193440936,-500.0,0.00038356,9]
[355471559,1741193440946,-500.0,0.00038356,9]
[355471561,1741193440955,-500.0,0.00038356,9]
[355471564,1741193440965,-500.0,0.00038356,9]
[355471565,1741193440977,-500.0,0.00038356,9]
[355471568,1741193440986,-500.0,0.00038356,9]
[355471569,1741193440999,-509.79231782,0.00038356,9]
[355471572,1741193441009,-1892.66,0.00038356,9]
[355471574,1741193441019,-583.08420684,0.00038356,9]
[355471576,1741193441029,-500.0,0.00038356,2]
[355471577,1741193441039,-500.0,0.00038356,9]
[355471579,1741193441049,-500.0,0.00038356,9]
[355471582,1741193441059,-500.0,0.00038356,9]
[355471584,1741193441069,-500.0,0.00038356,9]
[355471586,1741193441079,-500.0,0.00038356,9]
[355471588,1741193441090,-690.5,0.00038356,9]
[355471589,1741193441099,-679.55,0.00038356,9]
[355471591,1741193441109,-4060.71,0.00038356,9]
[355471593,1741193441119,-500.0,0.00038356,9]
[355471596,1741193441129,-1152.33,0.00038356,9]
[355471598,1741193441139,-500.0,0.00038356,9]
[355471600,1741193441149,-1292.02,0.00038356,9]
[355471602,1741193441159,-500.0,0.00038356,9]
[355471604,1741193441168,-500.0,0.00038356,9]
[355471606,1741193441178,-500.0,0.00038356,9]
[355471608,1741193441187,-950.8,0.00038356,9]
[355471610,1741193441196,-500.0,0.00038356,9]
[355471612,1741193441206,-500.0,0.00038356,9]
[355471614,1741193441215,-682.26,0.00038356,9]
[355471616,1741193441224,-500.0,0.00038356,9]
[355471618,1741193441233,-500.0,0.00038356,9]
[355471620,1741193441243,-500.0,0.00038356,9]
[355471622,1741193441251,-500.0,0.00038356,9]
[355471624,1741193441261,-500.0,0.00038356,9]
[355471626,1741193441270,-725.62,0.00038356,9]
[355471628,1741193441280,-500.0,0.00038356,9]
[355471630,1741193441289,-500.0,0.00038356,9]
[355471632,1741193441298,-500.0,0.00038356,9]
[355471634,1741193441308,-509.96699006,0.00038356,9]
[355471636,1741193441317,-500.0,0.00038356,9]
[355471638,1741193441327,-564.95,0.00038356,9]
[355471640,1741193441337,-500.0,0.00038356,9]
[355471642,1741193441346,-13137.52,0.00038356,9]
[355471644,1741193441356,-500.0,0.00038356,9]
[355471646,1741193441365,-502.70261033,0.00038356,9]
[355471648,1741193441375,-500.0,0.00038356,9]
[355471649,1741193441384,-500.84825885,0.00038356,9]
[355471651,1741193441393,-498.00000002,0.00038356,9]
[355471653,1741193441402,-500.0,0.00038356,9]
[355471655,1741193441411,-771.54,0.00038356,9]
[355471657,1741193441421,-500.0,0.00038356,9]
[355471659,1741193441430,-500.0,0.00038356,9]
[355471661,1741193441439,-712.45,0.00038356,9]
[355471663,1741193441448,-506.96547516,0.00038356,9]
[355471665,1741193441458,-500.0,0.00038356,9]
[355471667,1741193441467,-500.0,0.00038356,9]
[355471669,1741193441476,-507.1273786,0.00038356,9]
[355471671,1741193441486,-500.0,0.00038356,9]
[355471673,1741193441495,-500.0,0.00038356,9]
[355471675,1741193441504,-500.0,0.00038356,9]
[355471677,1741193441513,-500.0,0.00038356,9]
[355471679,1741193441522,-500.0,0.00038356,9]
[355471681,1741193441532,-6700.09,0.00038356,9]
[355471683,1741193441541,-504.15977757,0.00038356,9]
[355471685,1741193441550,-1345.69,0.00038356,9]
[355471687,1741193441559,-500.0,0.00038356,9]
[355471689,1741193441568,-327.67789295,0.00038356,9]
[355471691,1741193441577,-200.0,0.00038356,7]
[355471693,1741193441589,-1675.15,0.00038356,9]
[355471695,1741193441598,-500.0,0.00038356,9]
[355471697,1741193441607,-5352.08,0.00038356,9]
[355471698,1741193441616,-677.55,0.00038356,9]
[355471700,1741193441625,-570.35,0.00038356,9]
[355471702,1741193441635,-500.0,0.00038356,9]
[355471704,1741193441645,-500.0,0.00038356,9]
[355471706,1741193441655,-500.0,0.00038356,9]
[355471708,1741193441664,-500.0,0.00038356,9]
[355471710,1741193441674,-500.0,0.00038356,9]
[355471712,1741193441683,-1313.7,0.00038356,9]
[355471714,1741193441693,-500.0,0.00038356,9]
[355471716,1741193441702,-500.0,0.00038356,9]
[355471718,1741193441711,-500.0,0.00038356,9]
[355471720,1741193441720,-500.0,0.00038356,9]
[355471723,1741193441730,-1001.1,0.00038356,9]
[355471724,1741193441739,-500.0,0.00038356,9]
[355471726,1741193441748,-503.355792,0.00038356,9]
[355471728,1741193441757,-500.0,0.00038356,9]
[355471730,1741193441767,-2658.19,0.00038356,9]
[355471732,1741193441777,-500.0,0.00038356,9]
[355471734,1741193441787,-506.64125087,0.00038356,9]
[355471737,1741193441797,-500.0,0.00038356,9]
[355471739,1741193441806,-500.0,0.00038356,9]
[355471741,1741193441815,-1081.26,0.00038356,9]
[355471743,1741193441824,-500.0,0.00038356,9]
[355471744,1741193441834,-500.0,0.00038356,9]
[355471746,1741193441847,-500.0,0.00038356,9]
[355471749,1741193441856,-1246.85,0.00038356,9]
[355471750,1741193441866,-500.0,0.00038356,9]
[355471752,1741193441875,-500.0,0.00038356,9]
[355471754,1741193441884,-500.0,0.00038356,9]
[355471756,1741193441893,-500.0,0.00038356,9]
[355471758,1741193441903,-500.0,0.00038356,9]
[355471760,1741193441912,-500.0,0.00038356,9]
[355471762,1741193441922,-500.0,0.00038356,9]
[355471764,1741193441931,-500.0,0.00038356,9]
[355471766,1741193441941,-500.0,0.00038356,9]
[355471769,1741193441951,-500.0,0.00038356,9]
[355471770,1741193441960,-510.75532337,0.00038356,9]
[355471772,1741193441972,-509.76833701,0.00038356,9]
[355471774,1741193441982,-500.0,0.00038356,9]
[355471776,1741193441992,-500.0,0.00038356,9]
[355471778,1741193442007,-500.0,0.00038356,9]
[355471781,1741193442017,-500.0,0.00038356,9]
[355471782,1741193442027,-1095.17,0.00038356,9]
[355471785,1741193442038,-526.11,0.00038356,9]
[355471787,1741193442048,-502.29146137,0.00038356,9]
[355471788,1741193442058,-437.30035071,0.00038356,9]
[355471791,1741193442068,-500.0,0.00038356,9]
[355471792,1741193442078,-500.0,0.00038356,9]
[355471794,1741193442091,-500.0,0.00038356,9]
[355471796,1741193442101,-500.0,0.00038356,9]
[355471799,1741193442110,-500.0,0.00038356,9]
[355471801,1741193442120,-500.0,0.00038356,9]
[355471803,1741193442129,-655.54,0.00038356,9]
[355471804,1741193442138,-500.0,0.00038356,9]
[355471807,1741193442148,-151.0,0.00038356,14]
[355471809,1741193442157,-500.0,0.00038356,9]
[355471811,1741193442167,-1731.22,0.00038356,9]
[355471813,1741193442176,-500.0,0.00038356,9]
[355471817,1741193442186,-151.0,0.00038356,14]
[355471820,1741193442195,-507.60786222,0.00038356,9]
[355471823,1741193442205,-151.0,0.00038356,14]
[355471825,1741193442214,-500.0,0.00038356,9]
[355471826,1741193442223,-500.0,0.00038356,9]
[355471830,1741193442232,-677.85,0.00038356,9]
[355471833,1741193442241,-500.0,0.00038356,9]
[355471835,1741193442250,-500.0,0.00038356,9]
[355471837,1741193442260,-500.0,0.00038356,9]
[355471839,1741193442269,-508.64970792,0.00038356,9]
[355471841,1741193442279,-500.0,0.00038356,9]
[355471844,1741193442288,-500.0,0.00038356,9]
[355471846,1741193442298,-787.85,0.00038356,9]
[355471848,1741193442307,-415.9965888,0.00038356,9]
[355471851,1741193442317,-500.0,0.00038356,9]
[355471853,1741193442326,-5043.64,0.00038356,9]
[355471855,1741193442335,-500.0,0.00038356,9]
[355471857,1741193442347,-1556.37,0.00038356,9]
[355471858,1741193442357,-505.34826254,0.00038356,9]
[355471861,1741193442367,-500.0,0.00038356,9]
[355471864,1741193442378,-500.0,0.00038356,9]
[355471866,1741193442388,-151.0,0.00038356,14]
[355471868,1741193442399,-845.58,0.00038356,9]
[355471870,1741193442409,-501.27881484,0.00038356,9]
[355471872,1741193442419,-500.0,0.00038356,9]
[355471874,1741193442430,-500.0,0.00038356,9]
[355471878,1741193442440,-500.0,0.00038356,9]
[355471881,1741193442450,-524.59068703,0.00038356,9]
[355471884,1741193442460,-500.0,0.00038356,9]
[355471885,1741193442469,-500.0,0.00038356,9]
[355471888,1741193442479,-500.0,0.00038356,9]
[355471891,1741193442488,-4634.0,0.00038356,9]
[355471895,1741193442498,-500.0,0.00038356,9]
[355471899,1741193442508,-500.0,0.00038356,9]
[355471901,1741193442518,-5156.56,0.00038356,9]
[355471905,1741193442528,-500.0,0.00038356,9]
[355471934,1741193442685,-508.03485846,0.00038356,9]
[355471936,1741193442696,-500.0,0.00038356,9]
[355471938,1741193442706,-500.0,0.00038356,9]
[355471940,1741193442715,-503.13417113,0.00038356,9]
[355471942,1741193442724,-500.0,0.00038356,9]
[355471944,1741193442734,-500.0,0.00038356,9]
[355471946,1741193442743,-500.0,0.00038356,9]
[355471948,1741193442752,-500.0,0.00038356,9]
[355471950,1741193442762,-500.0,0.00038356,9]
[355471952,1741193442771,-580.59,0.00038356,9]
[355471955,1741193442781,-565.23,0.00038356,9]